[Event "Titled Tuesday Blitz March 01 Early 2022"]
[White "Csonka, Balazs"]
[Black "Shukhman, Anna"]
[WhiteFideId "742910"]
[BlackFideId "54180058"]
[WhiteElo "2404"]
[BlackElo "1628"]
[Result "1-0"]
[Round "08"]
[TimeControl "180+1"]
[Date "2022.03.01"]
[WhiteClock "0:00:06"]
[BlackClock "0:00:38"]

1. d4 {[%clk 0:03:00]}  Nf6 {[%clk 0:02:58]} 2. Nf3 {[%clk 0:03:00]}  g6 {[%clk 0:02:58]} 3. Bg5 {[%clk 0:02:59]}  Bg7 {[%clk 0:02:58]} 4. Nbd2 {[%clk 0:02:59]}  d5 {[%clk 0:02:57]} 5. e3 {[%clk 0:02:56]}  O-O {[%clk 0:02:56]} 6. Be2 {[%clk 0:02:55]}  c6 {[%clk 0:02:56]} 7. h3 {[%clk 0:02:53]}  Nbd7 {[%clk 0:02:55]} 8. O-O {[%clk 0:02:52]}  h6 {[%clk 0:02:47]} 9. Bf4 {[%clk 0:02:51]}  Ne4 {[%clk 0:02:41]} 10. c4 {[%clk 0:02:14]}  g5 {[%clk 0:02:34]} 11. Bh2 {[%clk 0:02:14]}  f5 {[%clk 0:02:34]} 12. cxd5 {[%clk 0:02:02]}  cxd5 {[%clk 0:02:32]} 13. Qb3 {[%clk 0:02:03]}  e6 {[%clk 0:02:33]} 14. Nxe4 {[%clk 0:01:45]}  fxe4 {[%clk 0:02:31]} 15. Nd2 {[%clk 0:01:43]}  Qa5 {[%clk 0:02:09]} 16. Nb1 {[%clk 0:01:30]}  e5 {[%clk 0:01:59]} 17. Nc3 {[%clk 0:01:20]}  exd4 {[%clk 0:01:36]} 18. Nxd5 {[%clk 0:01:19]}  Nc5 {[%clk 0:01:35]} 19. Qc4 {[%clk 0:00:52]}  d3 {[%clk 0:01:30]} 20. Nc7+ {[%clk 0:00:26]}  Kh8 {[%clk 0:01:14]} 21. b4 {[%clk 0:00:21]}  Qa4 {[%clk 0:01:06]} 22. Qxc5 {[%clk 0:00:16]}  dxe2 {[%clk 0:01:05]} 23. Nxa8 {[%clk 0:00:07]}  exf1=Q+ {[%clk 0:01:04]} 24. Rxf1 {[%clk 0:00:08]}  b6 {[%clk 0:00:51]} 25. Qe7 {[%clk 0:00:06]}  Qd7 {[%clk 0:00:51]} 26. Qxd7 {[%clk 0:00:05]}  Bxd7 {[%clk 0:00:52]} 27. Nc7 {[%clk 0:00:06]}  a5 {[%clk 0:00:42]} 28. bxa5 {[%clk 0:00:05]}  bxa5 {[%clk 0:00:42]} 29. Rd1 {[%clk 0:00:05]}  Bc6 {[%clk 0:00:41]} 30. Ne6 {[%clk 0:00:04]}  Rb8 {[%clk 0:00:40]} 31. Bxb8 {[%clk 0:00:03]}  Bf6 {[%clk 0:00:39]} 32. Nd8 {[%clk 0:00:03]}  Bb5 {[%clk 0:00:38]} 33. Be5 {[%clk 0:00:03]}  Bxe5 {[%clk 0:00:37]} 34. Nf7+ {[%clk 0:00:04]}  Kg7 {[%clk 0:00:38]} 35. Nxe5 {[%clk 0:00:05]}  Kf6 {[%clk 0:00:38]} 36. Nd7+ {[%clk 0:00:05]}  Ke6 {[%clk 0:00:38]} 37. Nc5+ {[%clk 0:00:06]}  Ke7 {[%clk 0:00:38]} 38. Rd4 {[%clk 0:00:06]} 1-0


[Site "https://www.chess.com"]

[Event "Titled Tuesday Blitz March 01 Early 2022"]
[White "Demchenko, Anton"]
[Black "Alavkin, Arseny"]
[WhiteFideId "4160258"]
[BlackFideId "4120612"]
[WhiteElo "2539"]
[BlackElo "2391"]
[Result "1/2-1/2"]
[Round "08"]
[TimeControl "180+1"]
[Date "2022.03.01"]
[WhiteClock "0:00:07"]
[BlackClock "0:00:06"]

1. e4 {[%clk 0:03:00]}  e6 {[%clk 0:02:44]} 2. d4 {[%clk 0:03:00]}  d5 {[%clk 0:02:45]} 3. Nd2 {[%clk 0:03:00]}  Be7 {[%clk 0:02:44]} 4. Ngf3 {[%clk 0:02:59]}  Nf6 {[%clk 0:02:43]} 5. e5 {[%clk 0:03:00]}  Nfd7 {[%clk 0:02:43]} 6. c3 {[%clk 0:03:00]}  c5 {[%clk 0:02:44]} 7. Be2 {[%clk 0:03:01]}  Nc6 {[%clk 0:02:45]} 8. O-O {[%clk 0:03:01]}  a5 {[%clk 0:02:44]} 9. a4 {[%clk 0:03:00]}  O-O {[%clk 0:02:44]} 10. Re1 {[%clk 0:02:59]}  f6 {[%clk 0:02:44]} 11. exf6 {[%clk 0:02:58]}  Nxf6 {[%clk 0:02:44]} 12. Bb5 {[%clk 0:02:36]}  cxd4 {[%clk 0:02:44]} 13. cxd4 {[%clk 0:02:36]}  Bb4 {[%clk 0:02:43]} 14. Re2 {[%clk 0:02:19]}  Bd7 {[%clk 0:02:43]} 15. Nf1 {[%clk 0:02:18]}  Ne4 {[%clk 0:02:38]} 16. Ng3 {[%clk 0:02:17]}  Nxg3 {[%clk 0:02:36]} 17. hxg3 {[%clk 0:02:18]}  Qf6 {[%clk 0:02:33]} 18. Bg5 {[%clk 0:02:17]}  Qf7 {[%clk 0:02:28]} 19. Bf4 {[%clk 0:02:18]}  Rac8 {[%clk 0:02:26]} 20. Qd3 {[%clk 0:02:07]}  Qf5 {[%clk 0:02:20]} 21. Qxf5 {[%clk 0:01:58]}  Rxf5 {[%clk 0:02:21]} 22. Rc1 {[%clk 0:01:54]}  h6 {[%clk 0:01:56]} 23. Bd2 {[%clk 0:01:41]}  Rxf3 {[%clk 0:01:24]} 24. Bxb4 {[%clk 0:00:30]}  Nxd4 {[%clk 0:01:14]} 25. Ree1 {[%clk 0:00:20]}  Rxc1 {[%clk 0:00:58]} 26. Rxc1 {[%clk 0:00:21]}  Rb3 {[%clk 0:00:35]} 27. Bc3 {[%clk 0:00:13]}  Nxb5 {[%clk 0:00:24]} 28. axb5 {[%clk 0:00:13]}  Rxb5 {[%clk 0:00:25]} 29. Be5 {[%clk 0:00:12]}  Bc6 {[%clk 0:00:25]} 30. Ra1 {[%clk 0:00:09]}  b6 {[%clk 0:00:23]} 31. Bd4 {[%clk 0:00:07]}  Rb4 {[%clk 0:00:23]} 32. Be5 {[%clk 0:00:06]}  Kf7 {[%clk 0:00:15]} 33. f3 {[%clk 0:00:06]}  a4 {[%clk 0:00:14]} 34. Kf2 {[%clk 0:00:05]}  Rc4 {[%clk 0:00:14]} 35. Ke3 {[%clk 0:00:05]}  b5 {[%clk 0:00:15]} 36. g4 {[%clk 0:00:05]}  b4 {[%clk 0:00:15]} 37. Rd1 {[%clk 0:00:03]}  Rc2 {[%clk 0:00:14]} 38. Rd2 {[%clk 0:00:02]}  Rc4 {[%clk 0:00:13]} 39. Rd4 {[%clk 0:00:02]}  Bb5 {[%clk 0:00:13]} 40. Rxc4 {[%clk 0:00:02]}  Bxc4 {[%clk 0:00:14]} 41. Bd6 {[%clk 0:00:02]}  b3 {[%clk 0:00:14]} 42. Kd4 {[%clk 0:00:03]}  Bf1 {[%clk 0:00:12]} 43. g3 {[%clk 0:00:03]}  Be2 {[%clk 0:00:12]} 44. Ke3 {[%clk 0:00:03]}  Bd1 {[%clk 0:00:13]} 45. Ba3 {[%clk 0:00:03]}  g6 {[%clk 0:00:13]} 46. Kf4 {[%clk 0:00:04]}  Kg7 {[%clk 0:00:09]} 47. g5 {[%clk 0:00:03]}  h5 {[%clk 0:00:09]} 48. Ke3 {[%clk 0:00:03]}  Kf7 {[%clk 0:00:10]} 49. f4 {[%clk 0:00:04]}  Ke8 {[%clk 0:00:10]} 50. Kd4 {[%clk 0:00:04]}  Bg4 {[%clk 0:00:09]} 51. Ke5 {[%clk 0:00:05]}  Kd7 {[%clk 0:00:08]} 52. Kd4 {[%clk 0:00:05]}  Kc6 {[%clk 0:00:09]} 53. Bf8 {[%clk 0:00:05]}  Kb5 {[%clk 0:00:08]} 54. Be7 {[%clk 0:00:05]}  Bf5 {[%clk 0:00:08]} 55. Bf8 {[%clk 0:00:06]}  Kc6 {[%clk 0:00:05]} 56. Be7 {[%clk 0:00:06]}  Kb5 {[%clk 0:00:05]} 57. Ba3 {[%clk 0:00:06]}  Kb6 {[%clk 0:00:06]} 58. Bf8 {[%clk 0:00:06]}  Kc6 {[%clk 0:00:06]} 59. Be7 {[%clk 0:00:07]}  Kb5 {[%clk 0:00:06]} 1/2-1/2


[Site "https://www.chess.com"]

[Event "Titled Tuesday Blitz March 01 Early 2022"]
[White "Derraugh, Geordie"]
[Black "Mitusov, Semen"]
[WhiteFideId "2603950"]
[BlackFideId "14151049"]
[WhiteElo "2116"]
[BlackElo "2246"]
[Result "0-1"]
[Round "08"]
[TimeControl "180+1"]
[Date "2022.03.01"]
[WhiteClock "0:00:04"]
[BlackClock "0:00:07"]

1. e4 {[%clk 0:03:00]}  e5 {[%clk 0:02:59]} 2. Nf3 {[%clk 0:03:00]}  Qe7 {[%clk 0:02:59]} 3. Nc3 {[%clk 0:02:59]}  c6 {[%clk 0:02:59]} 4. Bc4 {[%clk 0:02:57]}  d6 {[%clk 0:02:57]} 5. O-O {[%clk 0:02:57]}  Bg4 {[%clk 0:02:57]} 6. h3 {[%clk 0:02:56]}  Bh5 {[%clk 0:02:57]} 7. d3 {[%clk 0:02:56]}  h6 {[%clk 0:02:57]} 8. a4 {[%clk 0:02:56]}  Nf6 {[%clk 0:02:56]} 9. a5 {[%clk 0:02:55]}  Qc7 {[%clk 0:02:55]} 10. Be3 {[%clk 0:02:54]}  Nbd7 {[%clk 0:02:54]} 11. g4 {[%clk 0:02:53]}  Bg6 {[%clk 0:02:53]} 12. Nh4 {[%clk 0:02:53]}  Bh7 {[%clk 0:02:52]} 13. Nf5 {[%clk 0:02:53]}  Bxf5 {[%clk 0:02:46]} 14. gxf5 {[%clk 0:02:54]}  Be7 {[%clk 0:02:39]} 15. Qf3 {[%clk 0:02:53]}  g6 {[%clk 0:02:29]} 16. fxg6 {[%clk 0:02:51]}  fxg6 {[%clk 0:02:30]} 17. Kh1 {[%clk 0:02:46]}  Nf8 {[%clk 0:02:08]} 18. Rg1 {[%clk 0:02:44]}  Qd7 {[%clk 0:02:04]} 19. b4 {[%clk 0:02:38]}  g5 {[%clk 0:01:45]} 20. b5 {[%clk 0:02:26]}  a6 {[%clk 0:01:31]} 21. bxa6 {[%clk 0:02:19]}  bxa6 {[%clk 0:01:31]} 22. Rab1 {[%clk 0:02:19]}  Ng6 {[%clk 0:01:29]} 23. Rb6 {[%clk 0:02:11]}  Nh4 {[%clk 0:01:22]} 24. Qg3 {[%clk 0:02:06]}  d5 {[%clk 0:01:22]} 25. exd5 {[%clk 0:01:59]}  Nxd5 {[%clk 0:00:59]} 26. Nxd5 {[%clk 0:01:53]}  cxd5 {[%clk 0:00:57]} 27. Bxa6 {[%clk 0:01:53]}  Rxa6 {[%clk 0:00:27]} 28. Rxa6 {[%clk 0:01:49]}  d4 {[%clk 0:00:24]} 29. Ra8+ {[%clk 0:00:50]}  Bd8 {[%clk 0:00:24]} 30. Qxe5+ {[%clk 0:00:48]}  Kf7 {[%clk 0:00:24]} 31. Rg4 {[%clk 0:00:34]}  dxe3 {[%clk 0:00:22]} 32. fxe3 {[%clk 0:00:14]}  Bf6 {[%clk 0:00:14]} 33. Qe4 {[%clk 0:00:11]}  Rxa8 {[%clk 0:00:13]} 34. Qxa8 {[%clk 0:00:12]}  Qb5 {[%clk 0:00:12]} 35. Qa7+ {[%clk 0:00:10]}  Kg6 {[%clk 0:00:11]} 36. Qc7 {[%clk 0:00:08]}  Qb1+ {[%clk 0:00:10]} 37. Kh2 {[%clk 0:00:08]}  Qe1 {[%clk 0:00:07]} 38. Rg3 {[%clk 0:00:05]}  Qf2+ {[%clk 0:00:07]} 39. Rg2 {[%clk 0:00:04]}  Qxg2# {[%clk 0:00:07]} 0-1


[Site "https://www.chess.com"]

[Event "Titled Tuesday Blitz March 01 Early 2022"]
[White "Dias, Joao Batista"]
[Black "Ovezdurdyyeva, Jemal"]
[WhiteFideId "2108240"]
[BlackFideId "14001888"]
[WhiteElo "1898"]
[BlackElo "1946"]
[Result "1-0"]
[Round "08"]
[TimeControl "180+1"]
[Date "2022.03.01"]
[WhiteClock "0:01:12"]
[BlackClock "0:00:27"]

1. e4 {[%clk 0:03:00]}  d6 {[%clk 0:02:59]} 2. d4 {[%clk 0:03:00]}  Nf6 {[%clk 0:02:59]} 3. Nc3 {[%clk 0:02:59]}  g6 {[%clk 0:02:58]} 4. Be2 {[%clk 0:02:58]}  c6 {[%clk 0:02:58]} 5. Nf3 {[%clk 0:02:58]}  b5 {[%clk 0:02:58]} 6. a3 {[%clk 0:02:56]}  Bg7 {[%clk 0:02:56]} 7. O-O {[%clk 0:02:55]}  a5 {[%clk 0:02:55]} 8. e5 {[%clk 0:02:51]}  Nfd7 {[%clk 0:02:49]} 9. exd6 {[%clk 0:02:50]}  exd6 {[%clk 0:02:48]} 10. d5 {[%clk 0:02:45]}  O-O {[%clk 0:02:25]} 11. dxc6 {[%clk 0:02:45]}  Nxc6 {[%clk 0:02:24]} 12. Bxb5 {[%clk 0:02:44]}  Nde5 {[%clk 0:02:20]} 13. Nxe5 {[%clk 0:02:39]}  Nxe5 {[%clk 0:02:19]} 14. Bf4 {[%clk 0:02:33]}  Qb6 {[%clk 0:02:15]} 15. a4 {[%clk 0:02:27]}  Bb7 {[%clk 0:02:13]} 16. Nd5 {[%clk 0:02:21]}  Qc5 {[%clk 0:02:10]} 17. c4 {[%clk 0:02:18]}  Nxc4 {[%clk 0:01:53]} 18. Ne7+ {[%clk 0:02:18]}  Kh8 {[%clk 0:01:52]} 19. b3 {[%clk 0:02:13]}  Ne5 {[%clk 0:01:36]} 20. Rc1 {[%clk 0:02:11]}  Qb4 {[%clk 0:01:33]} 21. Bxe5 {[%clk 0:02:00]}  Bxe5 {[%clk 0:01:22]} 22. Rc4 {[%clk 0:01:57]}  Qa3 {[%clk 0:01:18]} 23. f4 {[%clk 0:01:43]}  Bg7 {[%clk 0:00:53]} 24. f5 {[%clk 0:01:42]}  d5 {[%clk 0:00:51]} 25. Rc7 {[%clk 0:01:33]}  Rab8 {[%clk 0:00:32]} 26. fxg6 {[%clk 0:01:23]}  fxg6 {[%clk 0:00:27]} 27. Rxf8+ {[%clk 0:01:14]}  Bxf8 {[%clk 0:00:27]} 28. Qd4+ {[%clk 0:01:12]}  Bg7 {[%clk 0:00:27]} 29. Nxg6+ {[%clk 0:01:12]}  hxg6 {[%clk 0:00:27]} 30. Qxg7# {[%clk 0:01:12]} 1-0


[Site "https://www.chess.com"]

[Event "Titled Tuesday Blitz March 01 Early 2022"]
[White "Dziththauly, Ramadhan"]
[Black "Siva Mahadevan"]
[WhiteFideId "7105525"]
[BlackFideId "25043153"]
[WhiteElo "2587"]
[BlackElo "2203"]
[Result "0-1"]
[Round "08"]
[TimeControl "180+1"]
[Date "2022.03.01"]
[WhiteClock "0:00:02"]
[BlackClock "0:00:15"]

1. d4 {[%clk 0:03:00]}  Nf6 {[%clk 0:02:59]} 2. c4 {[%clk 0:03:00]}  g6 {[%clk 0:02:59]} 3. Nc3 {[%clk 0:03:00]}  Bg7 {[%clk 0:02:59]} 4. e4 {[%clk 0:03:00]}  O-O {[%clk 0:03:00]} 5. f3 {[%clk 0:03:00]}  d6 {[%clk 0:03:01]} 6. Bg5 {[%clk 0:03:00]}  Nbd7 {[%clk 0:02:51]} 7. Qd2 {[%clk 0:03:00]}  a6 {[%clk 0:02:50]} 8. Nh3 {[%clk 0:02:57]}  c6 {[%clk 0:02:47]} 9. a4 {[%clk 0:02:55]}  e5 {[%clk 0:02:43]} 10. dxe5 {[%clk 0:02:52]}  dxe5 {[%clk 0:02:43]} 11. Nf2 {[%clk 0:02:53]}  a5 {[%clk 0:02:42]} 12. Be2 {[%clk 0:02:52]}  Qe7 {[%clk 0:02:37]} 13. O-O {[%clk 0:02:51]}  Nc5 {[%clk 0:02:38]} 14. Qc2 {[%clk 0:02:51]}  Ne6 {[%clk 0:02:38]} 15. Be3 {[%clk 0:02:49]}  Nh5 {[%clk 0:02:38]} 16. Nd3 {[%clk 0:02:33]}  Nd4 {[%clk 0:02:28]} 17. Bxd4 {[%clk 0:02:14]}  exd4 {[%clk 0:02:29]} 18. Nd1 {[%clk 0:02:15]}  c5 {[%clk 0:02:28]} 19. N1f2 {[%clk 0:02:13]}  Re8 {[%clk 0:02:26]} 20. Rae1 {[%clk 0:02:10]}  b6 {[%clk 0:02:24]} 21. f4 {[%clk 0:02:08]}  Bb7 {[%clk 0:02:19]} 22. Bxh5 {[%clk 0:02:08]}  gxh5 {[%clk 0:02:19]} 23. Qe2 {[%clk 0:02:07]}  f5 {[%clk 0:02:03]} 24. e5 {[%clk 0:01:23]}  Qf7 {[%clk 0:02:00]} 25. b3 {[%clk 0:01:19]}  Kh8 {[%clk 0:01:55]} 26. Nh3 {[%clk 0:01:19]}  h6 {[%clk 0:01:54]} 27. Qf2 {[%clk 0:01:17]}  Re6 {[%clk 0:01:51]} 28. Qh4 {[%clk 0:01:08]}  Rg8 {[%clk 0:01:50]} 29. Re2 {[%clk 0:01:03]}  Bf8 {[%clk 0:01:48]} 30. Qe1 {[%clk 0:01:01]}  Be7 {[%clk 0:01:45]} 31. Qd2 {[%clk 0:00:48]}  h4 {[%clk 0:01:43]} 32. Ne1 {[%clk 0:00:47]}  Qh5 {[%clk 0:01:42]} 33. Qd3 {[%clk 0:00:42]}  Qg4 {[%clk 0:01:38]} 34. Kf2 {[%clk 0:00:31]}  Reg6 {[%clk 0:00:57]} 35. Rg1 {[%clk 0:00:23]}  Qh5 {[%clk 0:00:54]} 36. Nf3 {[%clk 0:00:16]}  Re6 {[%clk 0:00:54]} 37. Kf1 {[%clk 0:00:14]}  Rg4 {[%clk 0:00:53]} 38. Ne1 {[%clk 0:00:11]}  Qg6 {[%clk 0:00:51]} 39. Nf3 {[%clk 0:00:10]}  Be4 {[%clk 0:00:50]} 40. Qd2 {[%clk 0:00:10]}  Bd8 {[%clk 0:00:48]} 41. Nf2 {[%clk 0:00:09]}  Bxf3 {[%clk 0:00:47]} 42. Nxg4 {[%clk 0:00:08]}  Bxe2+ {[%clk 0:00:47]} 43. Qxe2 {[%clk 0:00:07]}  Qxg4 {[%clk 0:00:45]} 44. Qxg4 {[%clk 0:00:07]}  fxg4 {[%clk 0:00:46]} 45. Ke2 {[%clk 0:00:08]}  Kg7 {[%clk 0:00:23]} 46. Kd3 {[%clk 0:00:08]}  Bc7 {[%clk 0:00:18]} 47. Ke4 {[%clk 0:00:08]}  Kf7 {[%clk 0:00:18]} 48. h3 {[%clk 0:00:07]}  g3 {[%clk 0:00:18]} 49. Re1 {[%clk 0:00:06]}  Re8 {[%clk 0:00:18]} 50. Kd5 {[%clk 0:00:06]}  Kg6 {[%clk 0:00:15]} 51. Kc6 {[%clk 0:00:06]}  Re7 {[%clk 0:00:15]} 52. Kd5 {[%clk 0:00:02]}  Kf5 {[%clk 0:00:15]} 53. Rf1 {[%clk 0:00:03]}  d3 {[%clk 0:00:15]} 54. Rd1 {[%clk 0:00:02]}  Kxf4 {[%clk 0:00:15]} 55. Rxd3 {[%clk 0:00:02]}  Rd7+ {[%clk 0:00:15]} 0-1


[Site "https://www.chess.com"]

[Event "Titled Tuesday Blitz March 01 Early 2022"]
[White "Eynullayev, Atilla"]
[Black "Mikhalsky, Vladimir"]
[WhiteFideId "13413570"]
[BlackFideId "14144352"]
[WhiteElo "1979"]
[BlackElo "2248"]
[Result "1-0"]
[Round "08"]
[TimeControl "180+1"]
[Date "2022.03.01"]
[WhiteClock "0:00:11"]
[BlackClock "0:00:01"]

1. e4 {[%clk 0:03:00]}  g6 {[%clk 0:02:41]} 2. d4 {[%clk 0:03:00]}  Bg7 {[%clk 0:02:40]} 3. Nc3 {[%clk 0:03:01]}  d6 {[%clk 0:02:40]} 4. Bg5 {[%clk 0:03:01]}  h6 {[%clk 0:02:40]} 5. Bh4 {[%clk 0:03:00]}  a6 {[%clk 0:02:34]} 6. a4 {[%clk 0:02:53]}  b6 {[%clk 0:02:34]} 7. Bc4 {[%clk 0:02:54]}  Bb7 {[%clk 0:02:32]} 8. Nf3 {[%clk 0:02:54]}  Qd7 {[%clk 0:02:23]} 9. O-O {[%clk 0:02:49]}  Nc6 {[%clk 0:02:23]} 10. Re1 {[%clk 0:02:35]}  e5 {[%clk 0:01:53]} 11. Bd5 {[%clk 0:01:45]}  Nge7 {[%clk 0:01:12]} 12. dxe5 {[%clk 0:01:45]}  Nxd5 {[%clk 0:01:07]} 13. Nxd5 {[%clk 0:01:39]}  g5 {[%clk 0:00:56]} 14. Bg3 {[%clk 0:01:24]}  Nxe5 {[%clk 0:00:54]} 15. Nd4 {[%clk 0:01:20]}  O-O-O {[%clk 0:00:46]} 16. Nf5 {[%clk 0:01:15]}  Bf8 {[%clk 0:00:40]} 17. a5 {[%clk 0:01:14]}  b5 {[%clk 0:00:38]} 18. Qd4 {[%clk 0:01:13]}  Kb8 {[%clk 0:00:38]} 19. f3 {[%clk 0:01:13]}  c5 {[%clk 0:00:33]} 20. Qd1 {[%clk 0:01:06]}  Rg8 {[%clk 0:00:25]} 21. Bf2 {[%clk 0:01:03]}  g4 {[%clk 0:00:24]} 22. f4 {[%clk 0:01:03]}  Nc4 {[%clk 0:00:23]} 23. b3 {[%clk 0:00:58]}  Nb2 {[%clk 0:00:21]} 24. Qc1 {[%clk 0:00:57]}  Bxd5 {[%clk 0:00:20]} 25. Qxb2 {[%clk 0:00:56]}  Bxe4 {[%clk 0:00:19]} 26. Nxd6 {[%clk 0:00:31]}  Qxd6 {[%clk 0:00:18]} 27. Rxe4 {[%clk 0:00:31]}  Bg7 {[%clk 0:00:19]} 28. c3 {[%clk 0:00:32]}  Qd2 {[%clk 0:00:18]} 29. Qxd2 {[%clk 0:00:30]}  Rxd2 {[%clk 0:00:17]} 30. Bxc5 {[%clk 0:00:29]}  Bxc3 {[%clk 0:00:17]} 31. Rc1 {[%clk 0:00:28]}  Bb2 {[%clk 0:00:16]} 32. Rce1 {[%clk 0:00:26]}  Rc8 {[%clk 0:00:16]} 33. b4 {[%clk 0:00:24]}  Bc3 {[%clk 0:00:15]} 34. Re7 {[%clk 0:00:22]}  f5 {[%clk 0:00:14]} 35. Kf1 {[%clk 0:00:18]}  Bd4 {[%clk 0:00:14]} 36. Rc1 {[%clk 0:00:08]}  Rf2+ {[%clk 0:00:12]} 37. Ke1 {[%clk 0:00:08]}  Rxc5 {[%clk 0:00:09]} 38. bxc5 {[%clk 0:00:08]}  Rxf4 {[%clk 0:00:09]} 39. c6 {[%clk 0:00:08]}  Re4+ {[%clk 0:00:09]} 40. Rxe4 {[%clk 0:00:06]}  fxe4 {[%clk 0:00:09]} 41. Ke2 {[%clk 0:00:06]}  Kc7 {[%clk 0:00:09]} 42. h3 {[%clk 0:00:06]}  gxh3 {[%clk 0:00:08]} 43. gxh3 {[%clk 0:00:07]}  b4 {[%clk 0:00:08]} 44. Rc4 {[%clk 0:00:07]}  Be5 {[%clk 0:00:04]} 45. Rxe4 {[%clk 0:00:07]}  Bd6 {[%clk 0:00:03]} 46. Rc4 {[%clk 0:00:07]}  b3 {[%clk 0:00:04]} 47. Kd3 {[%clk 0:00:08]}  b2 {[%clk 0:00:03]} 48. Kc2 {[%clk 0:00:08]}  Be5 {[%clk 0:00:04]} 49. h4 {[%clk 0:00:08]}  Bf6 {[%clk 0:00:03]} 50. h5 {[%clk 0:00:09]}  Be5 {[%clk 0:00:03]} 51. Rc5 {[%clk 0:00:09]}  Bf6 {[%clk 0:00:02]} 52. Rc4 {[%clk 0:00:09]}  Be5 {[%clk 0:00:02]} 53. Re4 {[%clk 0:00:10]}  Bf6 {[%clk 0:00:02]} 54. Re6 {[%clk 0:00:10]}  Bd4 {[%clk 0:00:02]} 55. Rxh6 {[%clk 0:00:10]}  Be3 {[%clk 0:00:02]} 56. Rg6 {[%clk 0:00:10]}  Bd4 {[%clk 0:00:02]} 57. h6 {[%clk 0:00:10]}  Be3 {[%clk 0:00:02]} 58. h7 {[%clk 0:00:10]}  Bd4 {[%clk 0:00:02]} 59. Re6 {[%clk 0:00:11]}  Bh8 {[%clk 0:00:01]} 60. Re8 {[%clk 0:00:11]} 1-0


[Site "https://www.chess.com"]

[Event "Titled Tuesday Blitz March 01 Early 2022"]
[White "Fus, Jakub"]
[Black "Horak, Martin"]
[WhiteFideId "1193023"]
[BlackFideId "367095"]
[WhiteElo "2111"]
[BlackElo "1997"]
[Result "1-0"]
[Round "08"]
[TimeControl "180+1"]
[Date "2022.03.01"]
[WhiteClock "0:00:41"]
[BlackClock "0:00:02"]

1. e4 {[%clk 0:03:00]}  e5 {[%clk 0:02:58]} 2. Nf3 {[%clk 0:03:00]}  Nc6 {[%clk 0:02:56]} 3. Bb5 {[%clk 0:03:01]}  a6 {[%clk 0:02:57]} 4. Ba4 {[%clk 0:03:00]}  Nf6 {[%clk 0:02:57]} 5. O-O {[%clk 0:03:01]}  Be7 {[%clk 0:02:57]} 6. Re1 {[%clk 0:03:01]}  b5 {[%clk 0:02:57]} 7. Bb3 {[%clk 0:03:01]}  d6 {[%clk 0:02:58]} 8. c3 {[%clk 0:03:00]}  O-O {[%clk 0:02:58]} 9. h3 {[%clk 0:03:01]}  Nb8 {[%clk 0:02:58]} 10. d4 {[%clk 0:03:00]}  Nbd7 {[%clk 0:02:59]} 11. c4 {[%clk 0:03:00]}  c6 {[%clk 0:02:47]} 12. a3 {[%clk 0:02:59]}  bxc4 {[%clk 0:02:07]} 13. Bxc4 {[%clk 0:02:57]}  d5 {[%clk 0:02:07]} 14. dxe5 {[%clk 0:02:48]}  dxc4 {[%clk 0:02:05]} 15. exf6 {[%clk 0:02:48]}  Nxf6 {[%clk 0:01:59]} 16. Qxd8 {[%clk 0:02:44]}  Rxd8 {[%clk 0:02:00]} 17. Nbd2 {[%clk 0:02:44]}  c3 {[%clk 0:01:29]} 18. bxc3 {[%clk 0:02:45]}  Rb8 {[%clk 0:01:23]} 19. Ne5 {[%clk 0:02:35]}  Bd7 {[%clk 0:01:10]} 20. Ndc4 {[%clk 0:02:35]}  Be8 {[%clk 0:01:09]} 21. Bg5 {[%clk 0:02:27]}  Rb3 {[%clk 0:01:05]} 22. Rec1 {[%clk 0:02:19]}  h6 {[%clk 0:01:02]} 23. Bxf6 {[%clk 0:02:17]}  Bxf6 {[%clk 0:00:32]} 24. Na5 {[%clk 0:01:57]}  Rxc3 {[%clk 0:00:25]} 25. Rxc3 {[%clk 0:01:58]}  Bxe5 {[%clk 0:00:25]} 26. Rac1 {[%clk 0:01:59]}  Bxc3 {[%clk 0:00:25]} 27. Rxc3 {[%clk 0:01:59]}  Rd4 {[%clk 0:00:21]} 28. f3 {[%clk 0:01:57]}  Ra4 {[%clk 0:00:20]} 29. Nb7 {[%clk 0:01:55]}  Kf8 {[%clk 0:00:15]} 30. Nc5 {[%clk 0:01:49]}  Ra5 {[%clk 0:00:13]} 31. Kf2 {[%clk 0:01:49]}  Rb5 {[%clk 0:00:13]} 32. Nxa6 {[%clk 0:01:45]}  Rb2+ {[%clk 0:00:14]} 33. Kg3 {[%clk 0:01:45]}  Ke7 {[%clk 0:00:14]} 34. Nc5 {[%clk 0:01:36]}  Kd6 {[%clk 0:00:12]} 35. a4 {[%clk 0:01:36]}  Ra2 {[%clk 0:00:08]} 36. a5 {[%clk 0:01:35]}  Ra1 {[%clk 0:00:03]} 37. a6 {[%clk 0:01:34]}  Kc7 {[%clk 0:00:03]} 38. Kf4 {[%clk 0:01:26]}  Bd7 {[%clk 0:00:03]} 39. g4 {[%clk 0:00:49]}  Bc8 {[%clk 0:00:03]} 40. h4 {[%clk 0:00:43]}  Bxa6 {[%clk 0:00:03]} 41. h5 {[%clk 0:00:43]}  Bc8 {[%clk 0:00:03]} 42. Nd3 {[%clk 0:00:42]}  Ra5 {[%clk 0:00:02]} 43. Ne5 {[%clk 0:00:42]}  f6 {[%clk 0:00:01]} 44. Nxc6 {[%clk 0:00:41]}  Ra1 {[%clk 0:00:02]} 45. Ne7+ {[%clk 0:00:41]}  Kd7 {[%clk 0:00:02]} 46. Nxc8 {[%clk 0:00:41]} 1-0


[Site "https://www.chess.com"]

[Event "Titled Tuesday Blitz March 01 Early 2022"]
[White "Gadimbayli, Abdulla"]
[Black "Dubov, Daniil"]
[WhiteFideId "13404938"]
[BlackFideId "24126055"]
[WhiteElo "2756"]
[BlackElo "2993"]
[Result "0-1"]
[Round "08"]
[TimeControl "180+1"]
[Date "2022.03.01"]
[WhiteClock "0:00:02"]
[BlackClock "0:00:41"]

1. e4 {[%clk 0:03:00]}  e5 {[%clk 0:02:59]} 2. Nf3 {[%clk 0:03:01]}  f5 {[%clk 0:02:58]} 3. Bc4 {[%clk 0:02:57]}  Nc6 {[%clk 0:02:36]} 4. d4 {[%clk 0:02:36]}  fxe4 {[%clk 0:02:35]} 5. Nxe5 {[%clk 0:02:36]}  d5 {[%clk 0:02:33]} 6. Bb5 {[%clk 0:02:16]}  Bd7 {[%clk 0:02:31]} 7. Bxc6 {[%clk 0:02:06]}  bxc6 {[%clk 0:02:07]} 8. Qh5+ {[%clk 0:02:06]}  g6 {[%clk 0:02:08]} 9. Nxg6 {[%clk 0:02:05]}  hxg6 {[%clk 0:02:09]} 10. Qxh8 {[%clk 0:02:06]}  Kf7 {[%clk 0:02:09]} 11. Qe5 {[%clk 0:02:00]}  Bd6 {[%clk 0:02:00]} 12. Qg5 {[%clk 0:01:58]}  Nf6 {[%clk 0:01:58]} 13. Bf4 {[%clk 0:01:50]}  Qb8 {[%clk 0:01:56]} 14. Be5 {[%clk 0:01:30]}  Be7 {[%clk 0:01:54]} 15. b3 {[%clk 0:01:25]}  Qb4+ {[%clk 0:01:32]} 16. c3 {[%clk 0:01:24]}  Qb5 {[%clk 0:01:32]} 17. Nd2 {[%clk 0:01:11]}  Ng4 {[%clk 0:01:15]} 18. Qf4+ {[%clk 0:01:04]}  Kg8 {[%clk 0:01:15]} 19. f3 {[%clk 0:00:21]}  Bh4+ {[%clk 0:01:02]} 20. g3 {[%clk 0:00:19]}  Rf8 {[%clk 0:01:02]} 21. Qxf8+ {[%clk 0:00:15]}  Kxf8 {[%clk 0:01:01]} 22. fxg4 {[%clk 0:00:16]}  Qd3 {[%clk 0:00:50]} 23. O-O-O {[%clk 0:00:05]}  Bg5 {[%clk 0:00:49]} 24. Rhf1+ {[%clk 0:00:04]}  Kg8 {[%clk 0:00:48]} 25. Bf4 {[%clk 0:00:03]}  Qxc3+ {[%clk 0:00:44]} 26. Kb1 {[%clk 0:00:02]}  Qd3+ {[%clk 0:00:41]} 27. Kb2 {[%clk 0:00:02]}  Qxd4+ {[%clk 0:00:41]} 28. Kb1 {[%clk 0:00:02]} 0-1


[Site "https://www.chess.com"]